[Event "EYCC Girls-U18 2019"]
[Site "Bratislava"]
[Date "2019.08.05"]
[Round "4.2"]
[White "Beydullayeva, Govhar"]
[Black "Schneider, Jana"]
[Result "1/2-1/2"]
[ECO "E06"]
[WhiteElo "2282"]
[BlackElo "2216"]
[Annotator "NA"]
[PlyCount "101"]
[EventDate "2019.08.02"]
[EventType "swiss"]
[EventCountry "SVK"]
[SourceTitle "playchess.com"]
[Source "ChessBase"]
[SourceQuality "1"]
[TimeControl "40/5400+30:1800+30"]

1. d4 {[%emt 0:00:00]} Nf6 {[%emt 0:00:00]} 2. c4 {[%emt 0:00:00]} e6 {[%emt 0:00:00]} 3. Nf3 {[%emt 0:00:00]} d5 {[%emt 0:00:00]} 4. g3 {[%emt 0:00:12]} Be7 {[%emt 0:00:02]} 5. Bg2 {[%emt 0:00:16]} O-O {[%emt 0:00:10]} 6. O-O {[%emt 0:00:23]} c6 {[%emt 0:00:07]} 7. Qc2 {[%emt 0:03:24]} b6 {[%emt 0:00:16]} 8. b3 {[%emt 0:01:10]} Bb7 {[%emt 0:00:19]} 9. Nc3 {[%emt 0:01:55]} Nbd7 {[%emt 0:01:05]} 10. Rd1 {[%emt 0:09:32]} Rc8 {[%emt 0:02:19]} 11. e4 {[%emt 0:01:35]} dxe4 {[%emt 0:01:38]} 12. Ng5 {[%emt 0:05:42]} c5 {[%emt 0:03:16]} 13. dxc5 {[%emt 0:10:11]} Bxc5 {[%emt 0:03:50]} 14. Ncxe4 Bxe4 {[%emt 0:20:52]} 15. Nxe4 {[%emt 0:09:47]} Qc7 {[%emt 0:03:12]} 16. Nxc5 {[%emt 0:03:00]} Qxc5 {[%emt 0:00:38]} 17. Qe2 {[%emt 0:04:40]} a5 {[%emt 0:06:08]} 18. Be3 {[%emt 0:04:45]} Qe5 {[%emt 0:01:50]} 19. Qd2 {[%emt 0:06:20]} Qh5 {[%emt 0:04:21]} 20. h3 {[%emt 0:01:54]} Nc5 {[%emt 0:02:58]} 21. Qd6 {[%emt 0:02:34]} Rb8 {[%emt 0:02:04]} 22. g4 {[%emt 0:04:40]} Qg6 {[%emt 0:05:52]} 23. Bxc5 {[%emt 0:02:32]} bxc5 {[%emt 0:00:16]} 24. Qxc5 {[%emt 0:00:07]} h5 {[%emt 0:00:48]} 25. g5 {[%emt 0:07:35]} Ne4 {[%emt 0:00:18]} 26. Qxa5 {[%emt 0:01:30]} Nxg5 {[%emt 0:00:50]} 27. Qc3 {[%emt 0:01:02]} f5 {[%emt 0:01:39]} 28. h4 {[%emt 0:10:06]} Ne4 {[%emt 0:01:06]} 29. Qe5 {[%emt 0:01:41]} Rbc8 {[%emt 0:05:03]} 30. f3 {[%emt 0:01:31]} Ng3 {[%emt 0:01:43]} 31. Rd7 {[%emt 0:00:30]} Rcd8 {[%emt 0:09:02]} 32. Rad1 {[%emt 0:01:03]} Rxd7 {[%emt 0:00:17]} 33. Rxd7 {[%emt 0:00:01]} f4 {[%emt 0:00:30]} 34. Qg5 {[%emt 0:02:02]} Qb1+ {[%emt 0:00:47]} 35. Kh2 {[%emt 0:00:13]} Qb2 {[%emt 0:00:53]} 36. c5 {[%emt 0:03:17]} Nf1+ {[%emt 0:02:33]} 37. Kh3 {[%emt 0:00:13]} Ne3 {[%emt 0:00:06]} 38. c6 {[%emt 0:00:28]} Qc3 {[%emt 0:03:06]} 39. Kh2 {[%emt 0:01:38]} Ra8 {[%emt 0:11:20]} 40. Rd8+ {[%emt 0:00:00]} Rxd8 41. Qxd8+ {[%emt 0:01:19]} Kh7 {[%emt 0:00:20]} 42. Kh3 {[%emt 0:14:46]} Ng4 {[%emt 0:02:43]} 43. Qg5 {[%emt 0:01:48]} Nf2+ {[%emt 0:00:27]} 44. Kh2 {[%emt 0:00:02]} Ng4+ {[%emt 0:00:23]} 45. fxg4 {[%emt 0:01:56]} Qg3+ {[%emt 0:00:04]} 46. Kg1 {[%emt 0:00:03]} Qe3+ {[%emt 0:00:07]} 47. Kf1 {[%emt 0:03:02]} Qc1+ {[%emt 0:00:48]} 48. Ke2 {[%emt 0:01:11]} Qe3+ {[%emt 0:00:13]} 49. Kf1 {[%emt 0:06:32]} Qc1+ {[%emt 0:00:06]} 50. Ke2 {[%emt 0:00:06]} Qe3+ {[%emt 0:00:03]} 51. Kf1 {[%emt 0:04:44]} 1/2-1/2

[Event "EYCC Girls-U18 2019"]
[Site "Bratislava"]
[Date "2019.08.05"]
[Round "4.4"]
[White "Antova, Gabriela"]
[Black "Nilssen, Ellen Fredericia"]
[Result "1-0"]
[ECO "D85"]
[WhiteElo "2257"]
[BlackElo "2155"]
[Annotator "NA"]
[PlyCount "83"]
[EventDate "2019.08.02"]
[EventType "swiss"]
[EventCountry "SVK"]
[SourceTitle "playchess.com"]
[Source "ChessBase"]
[SourceQuality "1"]
[TimeControl "40/5400+30:1800+30"]

1. d4 {[%emt 0:00:00]} Nf6 {[%emt 0:00:00]} 2. c4 {[%emt 0:00:00]} g6 {[%emt 0:00:00]} 3. Nc3 {[%emt 0:00:00]} d5 {[%emt 0:00:00]} 4. cxd5 {[%emt 0:00:00]} Nxd5 {[%emt 0:00:00]} 5. Bd2 {[%emt 0:00:01]} Bg7 {[%emt 0:00:23]} 6. e4 {[%emt 0:00:18]} Nxc3 {[%emt 0:00:07]} 7. Bxc3 {[%emt 0:00:08]} O-O {[%emt 0:00:09]} 8. Qd2 {[%emt 0:00:17]} Nc6 {[%emt 0:00:08]} 9. Nf3 {[%emt 0:00:32]} Bg4 {[%emt 0:00:28]} 10. d5 {[%emt 0:00:14]} Bxf3 {[%emt 0:00:42]} 11. Bxg7 {[%emt 0:00:11]} Kxg7 {[%emt 0:00:04]} 12. gxf3 {[%emt 0:00:10]} Ne5 {[%emt 0:00:10]} 13. O-O-O {[%emt 0:06:37]} Qd6 {[%emt 0:00:25]} 14. f4 {[%emt 0:13:02]} Nd7 {[%emt 0:03:55]} 15. Kb1 {[%emt 0:01:35]} f6 {[%emt 0:03:00]} 16. h4 {[%emt 0:06:04]} Nc5 {[%emt 0:23:23]} 17. f3 {[%emt 0:03:19]} e6 {[%emt 0:04:10]} 18. h5 {[%emt 0:08:38]} exd5 {[%emt 0:04:57]} 19. Qh2 {[%emt 0:03:02]} Rh8 {[%emt 0:08:50]} 20. Rxd5 {[%emt 0:00:17]} Qe7 {[%emt 0:00:14]} 21. Qc2 {[%emt 0:25:29]} Ne6 {[%emt 0:06:56]} 22. h6+ {[%emt 0:00:33]} Kf7 {[%emt 0:03:55]} 23. Bc4 {[%emt 0:02:50]} Ke8 {[%emt 0:01:47]} 24. Rhd1 {[%emt 0:03:43]} Rd8 {[%emt 0:05:54]} 25. Qa4+ {[%emt 0:08:39]} c6 {[%emt 0:03:14]} 26. Rxd8+ {[%emt 0:03:04]} Nxd8 {[%emt 0:00:02]} 27. Qxa7 {[%emt 0:00:13]} b5 {[%emt 0:00:11]} 28. Rxd8+ {[%emt 0:00:54]} Kxd8 {[%emt 0:00:26]} 29. Qb8+ {[%emt 0:00:06]} Kd7 {[%emt 0:00:21]} 30. Qxh8 {[%emt 0:00:02]} Qd6 {[%emt 0:04:20]} 31. Qxh7+ {[%emt 0:01:25]} Kd8 {[%emt 0:01:00]} 32. Qg8+ {[%emt 0:01:05]} Kc7 {[%emt 0:00:06]} 33. Bxb5 cxb5 34. Qd5 {[%emt 0:05:41]} Qxf4 {[%emt 0:01:21]} 35. h7 {[%emt 0:02:56]} Qh4 {[%emt 0:00:15]} 36. Qf7+ {[%emt 0:00:50]} Kb6 {[%emt 0:00:28]} 37. a3 {[%emt 0:00:10]} b4 {[%emt 0:01:40]} 38. axb4 {[%emt 0:00:28]} Qe1+ {[%emt 0:10:01]} 39. Ka2 {[%emt 0:00:21]} Qd1 {[%emt 0:00:12]} 40. Qe6+ {[%emt 0:00:00]} Ka7 {[%emt 0:00:00]} 41. Qb3 {[%emt 0:07:02]} Qh1 {[%emt 0:00:52]} 42. Qf7+ {[%emt 0:00:08]} 1-0

[Event "EYCC Girls-U18 2019"]
[Site "Bratislava"]
[Date "2019.08.05"]
[Round "4.5"]
[White "Nazarova, Anastasia"]
[Black "Ferkova, Dominika"]
[Result "0-1"]
[ECO "B13"]
[WhiteElo "2149"]
[BlackElo "2009"]
[Annotator "NA"]
[PlyCount "116"]
[EventDate "2019.08.02"]
[EventType "swiss"]
[EventCountry "SVK"]
[SourceTitle "playchess.com"]
[Source "ChessBase"]
[SourceQuality "1"]
[TimeControl "40/5400+30:1800+30"]

1. e4 {[%emt 0:00:00]} c6 {[%emt 0:00:00]} 2. d4 {[%emt 0:00:00]} d5 {[%emt 0:00:00]} 3. exd5 {[%emt 0:00:00]} cxd5 {[%emt 0:00:00]} 4. Bd3 {[%emt 0:00:00]} Nc6 {[%emt 0:00:09]} 5. c3 {[%emt 0:00:00]} g6 {[%emt 0:00:13]} 6. Nf3 {[%emt 0:00:00]} Bf5 {[%emt 0:00:06]} 7. Bxf5 {[%emt 0:00:05]} gxf5 {[%emt 0:00:07]} 8. O-O {[%emt 0:00:37]} Nf6 {[%emt 0:03:40]} 9. Re1 {[%emt 0:00:24]} e6 {[%emt 0:01:42]} 10. Bg5 {[%emt 0:08:22]} Be7 {[%emt 0:04:20]} 11. Bh6 {[%emt 0:08:37]} Qc7 {[%emt 0:09:42]} 12. Qd3 {[%emt 0:12:49]} Rg8 {[%emt 0:05:03]} 13. b4 {[%emt 0:06:27]} O-O-O {[%emt 0:10:28]} 14. b5 {[%emt 0:26:36]} Na5 {[%emt 0:04:42]} 15. Ne5 {[%emt 0:01:05]} Ng4 {[%emt 0:13:42]} 16. Bf4 {[%emt 0:11:30]} f6 {[%emt 0:09:05]} 17. Nxg4 {[%emt 0:00:30]} Qxf4 {[%emt 0:00:17]} 18. Ne3 {[%emt 0:00:14]} Qg5 {[%emt 0:13:15]} 19. g3 {[%emt 0:00:05]} f4 {[%emt 0:02:06]} 20. Ng2 {[%emt 0:01:45]} e5 {[%emt 0:04:28]} 21. Nd2 {[%emt 0:04:44]} e4 {[%emt 0:01:49]} 22. Qc2 {[%emt 0:05:00]} Kb8 {[%emt 0:00:32]} 23. c4 {[%emt 0:00:55]} Bb4 {[%emt 0:00:15]} 24. Nxe4 {[%emt 0:02:54]} dxe4 {[%emt 0:00:07]} 25. Rxe4 {[%emt 0:00:02]} fxg3 {[%emt 0:01:22]} 26. hxg3 {[%emt 0:00:05]} Qd2 {[%emt 0:04:14]} 27. Qxd2 {[%emt 0:04:42]} Bxd2 {[%emt 0:00:02]} 28. c5 {[%emt 0:00:11]} b6 {[%emt 0:05:43]} 29. Nh4 {[%emt 0:02:25]} Bc3 {[%emt 0:02:10]} 30. Rc1 {[%emt 0:01:33]} Bxd4 {[%emt 0:00:34]} 31. c6 {[%emt 0:00:12]} Bc5 {[%emt 0:00:06]} 32. Kf1 {[%emt 0:01:15]} Rge8 {[%emt 0:00:31]} 33. Rxe8 {[%emt 0:01:54]} Rxe8 {[%emt 0:00:01]} 34. Nf5 {[%emt 0:00:07]} a6 {[%emt 0:02:46]} 35. a4 {[%emt 0:00:18]} axb5 {[%emt 0:00:02]} 36. axb5 {[%emt 0:00:04]} Re5 {[%emt 0:01:30]} 37. g4 {[%emt 0:00:40]} h5 {[%emt 0:01:45]} 38. Rd1 {[%emt 0:00:44]} hxg4 {[%emt 0:01:08]} 39. Rd8+ {[%emt 0:00:03]} Kc7 {[%emt 0:00:24]} 40. Rh8 {[%emt 0:00:00]} Nxc6 {[%emt 0:00:00]} 41. Ng7 {[%emt 0:04:09]} Nd4 {[%emt 0:07:01]} 42. Ne8+ {[%emt 0:00:47]} Rxe8 {[%emt 0:00:48]} 43. Rxe8 {[%emt 0:00:06]} Nxb5 {[%emt 0:00:10]} 44. Ke2 {[%emt 0:02:33]} f5 {[%emt 0:01:22]} 45. Rg8 {[%emt 0:00:19]} Kd6 {[%emt 0:01:51]} 46. Rd8+ {[%emt 0:00:29]} Ke5 {[%emt 0:00:50]} 47. Re8+ {[%emt 0:00:15]} Kd5 {[%emt 0:00:13]} 48. Rg8 {[%emt 0:00:45]} Kc4 {[%emt 0:00:25]} 49. Ke1 {[%emt 0:00:34]} Nd4 {[%emt 0:00:21]} 50. Kd2 {[%emt 0:01:03]} b5 {[%emt 0:00:50]} 51. Rh8 {[%emt 0:01:00]} b4 {[%emt 0:01:18]} 52. Rh1 {[%emt 0:00:20]} b3 {[%emt 0:00:05]} 53. Rc1+ {[%emt 0:00:24]} Kb4 {[%emt 0:00:35]} 54. f4 {[%emt 0:03:05]} b2 {[%emt 0:01:19]} 55. Kd3 {[%emt 0:01:35]} bxc1=N+ {[%emt 0:01:21]} 56. Kd2 {[%emt 0:00:07]} Nf3+ {[%emt 0:00:33]} 57. Kd1 {[%emt 0:00:21]} g3 {[%emt 0:00:24]} 58. Kc2 {[%emt 0:00:56]} g2 {[%emt 0:00:08]} 0-1

[Event "EYCC Girls-U18 2019"]
[Site "Bratislava"]
[Date "2019.08.05"]
[Round "4.6"]
[White "Radeva, Viktoria"]
[Black "Cramling Bellon, Anna"]
[Result "0-1"]
[ECO "B33"]
[WhiteElo "2247"]
[BlackElo "2030"]
[Annotator "NA"]
[PlyCount "130"]
[EventDate "2019.08.02"]
[EventType "swiss"]
[EventCountry "SVK"]
[SourceTitle "playchess.com"]
[Source "ChessBase"]
[SourceQuality "1"]
[TimeControl "40/5400+30:1800+30"]

1. e4 {[%emt 0:00:00]} c5 {[%emt 0:00:00]} 2. Nf3 {[%emt 0:00:00]} e6 {[%emt 0:00:00]} 3. d4 {[%emt 0:00:00]} cxd4 {[%emt 0:00:00]} 4. Nxd4 {[%emt 0:00:00]} Nf6 {[%emt 0:00:00]} 5. Nc3 {[%emt 0:00:04]} Nc6 {[%emt 0:00:00]} 6. Ndb5 {[%emt 0:00:22]} d6 {[%emt 0:00:01]} 7. Bf4 {[%emt 0:03:00]} e5 {[%emt 0:00:21]} 8. Bg5 {[%emt 0:00:04]} a6 {[%emt 0:00:09]} 9. Na3 {[%emt 0:00:14]} b5 {[%emt 0:00:04]} 10. Nd5 {[%emt 0:00:08]} Be7 {[%emt 0:00:21]} 11. Bxf6 {[%emt 0:00:10]} Bxf6 {[%emt 0:00:10]} 12. c3 {[%emt 0:00:08]} Ne7 {[%emt 0:00:21]} 13. Nxf6+ {[%emt 0:00:25]} gxf6 {[%emt 0:00:05]} 14. Bd3 {[%emt 0:00:03]} d5 {[%emt 0:08:37]} 15. Qe2 {[%emt 0:04:05]} Bb7 {[%emt 0:01:28]} 16. Rd1 {[%emt 0:14:45]} Qb6 {[%emt 0:14:55]} 17. exd5 {[%emt 0:16:16]} Bxd5 {[%emt 0:06:16]} 18. Be4 {[%emt 0:01:14]} O-O-O {[%emt 0:06:10]} 19. O-O {[%emt 0:08:35]} Rhg8 {[%emt 0:14:08]} 20. c4 {[%emt 0:11:07]} Bxe4 {[%emt 0:00:52]} 21. Qxe4 {[%emt 0:00:10]} Rxd1 {[%emt 0:17:03]} 22. Rxd1 {[%emt 0:00:07]} b4 {[%emt 0:00:08]} 23. c5 {[%emt 0:20:08]} Qc6 {[%emt 0:02:41]} 24. Qxc6+ {[%emt 0:02:48]} Nxc6 {[%emt 0:00:01]} 25. Nc4 {[%emt 0:00:42]} Rd8 {[%emt 0:04:57]} 26. Nd6+ {[%emt 0:06:02]} Kc7 {[%emt 0:02:03]} 27. Kf1 {[%emt 0:00:37]} Na5 {[%emt 0:08:18]} 28. Rc1 {[%emt 0:01:58]} Nb7 {[%emt 0:04:20]} 29. Ne4 {[%emt 0:04:03]} Kc6 {[%emt 0:05:44]} 30. Ke2 {[%emt 0:01:46]} f5 {[%emt 0:01:15]} 31. Ng5 {[%emt 0:00:38]} Nxc5 {[%emt 0:02:15]} 32. Nxh7 {[%emt 0:02:33]} Kb6 {[%emt 0:01:22]} 33. g3 {[%emt 0:01:59]} Ne4 {[%emt 0:01:29]} 34. f3 {[%emt 0:00:14]} Rh8 {[%emt 0:00:23]} 35. fxe4 {[%emt 0:00:05]} Rxh7 {[%emt 0:00:02]} 36. h4 {[%emt 0:01:34]} fxe4 {[%emt 0:00:22]} 37. Rc4 {[%emt 0:00:07]} f5 {[%emt 0:01:01]} 38. Rxb4+ {[%emt 0:00:11]} Kc5 {[%emt 0:00:07]} 39. a3 {[%emt 0:00:58]} a5 {[%emt 0:01:06]} 40. Rb8 {[%emt 0:00:00]} f4 {[%emt 0:00:00]} 41. Rc8+ {[%emt 0:03:27]} Kd6 {[%emt 0:06:59]} 42. Rd8+ {[%emt 0:00:06]} Ke6 {[%emt 0:01:19]} 43. Rf8 {[%emt 0:07:26]} fxg3 {[%emt 0:02:59]} 44. Rg8 {[%emt 0:00:11]} Rxh4 {[%emt 0:01:45]} 45. Rxg3 {[%emt 0:00:53]} Rh2+ {[%emt 0:01:42]} 46. Ke3 {[%emt 0:03:49]} Kd5 {[%emt 0:02:46]} 47. Rg8 {[%emt 0:00:44]} Rxb2 {[%emt 0:01:02]} 48. Rd8+ {[%emt 0:00:08]} Kc4 {[%emt 0:00:57]} 49. Rc8+ {[%emt 0:04:08]} Kb3 {[%emt 0:02:00]} 50. Kxe4 {[%emt 0:00:07]} Kxa3 {[%emt 0:03:54]} 51. Kxe5 {[%emt 0:00:09]} Rd2 {[%emt 0:03:03]} 52. Ke4 {[%emt 0:01:24]} a4 {[%emt 0:01:23]} 53. Ke3 {[%emt 0:00:40]} Rd7 {[%emt 0:00:33]} 54. Rb8 {[%emt 0:01:10]} Ka2 {[%emt 0:00:50]} 55. Ke2 {[%emt 0:00:06]} a3 {[%emt 0:01:40]} 56. Ke1 {[%emt 0:00:05]} Rd3 {[%emt 0:02:02]} 57. Ke2 {[%emt 0:04:29]} Rb3 {[%emt 0:00:37]} 58. Rd8 {[%emt 0:03:42]} Ka1 {[%emt 0:04:12]} 59. Rd1+ {[%emt 0:02:01]} Rb1 {[%emt 0:00:09]} 60. Rd8 {[%emt 0:00:24]} a2 {[%emt 0:00:31]} 61. Kd2 {[%emt 0:01:31]} Kb2 {[%emt 0:00:41]} 62. Rb8+ {[%emt 0:00:04]} Ka3 {[%emt 0:00:05]} 63. Ra8+ {[%emt 0:00:05]} Kb3 {[%emt 0:00:09]} 64. Rb8+ {[%emt 0:01:22]} Kc4 {[%emt 0:00:08]} 65. Rc8+ {[%emt 0:00:05]} Kd5 {[%emt 0:00:09]} 0-1

[Event "EYCC Girls-U18 2019"]
[Site "Bratislava"]
[Date "2019.08.05"]
[Round "4.7"]
[White "Goltseva, Ekaterina"]
[Black "Sibajeva, Marija"]
[Result "1-0"]
[ECO "D85"]
[WhiteElo "2304"]
[BlackElo "2031"]
[Annotator "NA"]
[PlyCount "55"]
[EventDate "2019.08.02"]
[EventType "swiss"]
[EventCountry "SVK"]
[SourceTitle "playchess.com"]
[Source "ChessBase"]
[SourceQuality "1"]
[TimeControl "40/5400+30:1800+30"]

1. d4 {[%emt 0:00:00]} Nf6 {[%emt 0:00:00]} 2. c4 {[%emt 0:00:00]} g6 {[%emt 0:00:00]} 3. Nc3 {[%emt 0:00:00]} d5 {[%emt 0:00:00]} 4. cxd5 {[%emt 0:00:00]} Nxd5 {[%emt 0:00:00]} 5. e4 {[%emt 0:00:00]} Nxc3 {[%emt 0:00:00]} 6. bxc3 {[%emt 0:00:02]} Bg7 {[%emt 0:00:03]} 7. Nf3 {[%emt 0:00:12]} c5 {[%emt 0:00:06]} 8. Rb1 {[%emt 0:00:08]} O-O {[%emt 0:00:07]} 9. Be2 {[%emt 0:00:09]} cxd4 {[%emt 0:00:06]} 10. cxd4 {[%emt 0:00:05]} Qa5+ {[%emt 0:00:05]} 11. Bd2 {[%emt 0:00:05]} Qxa2 {[%emt 0:00:06]} 12. O-O {[%emt 0:00:14]} Bg4 {[%emt 0:00:19]} 13. Bg5 {[%emt 0:00:28]} h6 {[%emt 0:02:14]} 14. Bh4 {[%emt 0:00:44]} Rd8 {[%emt 0:08:36]} 15. d5 {[%emt 0:01:53]} g5 {[%emt 0:05:18]} 16. Bg3 {[%emt 0:00:56]} Nd7 {[%emt 0:16:24]} 17. Rxb7 {[%emt 0:12:15]} Nc5 {[%emt 0:06:14]} 18. Rxe7 {[%emt 0:03:25]} Bf6 {[%emt 0:02:53]} 19. Rxf7 {[%emt 0:06:04]} Nxe4 {[%emt 0:10:29]} 20. Rxf6 {[%emt 0:23:11]} Nxf6 {[%emt 0:00:50]} 21. Qd4 {[%emt 0:04:58]} Qxe2 {[%emt 0:06:50]} 22. Qxf6 {[%emt 0:01:02]} Rxd5 {[%emt 0:05:02]} 23. Be5 {[%emt 0:11:42]} Rd7 {[%emt 0:04:05]} 24. Qg6+ {[%emt 0:03:54]} Kf8 {[%emt 0:01:06]} 25. Qxh6+ {[%emt 0:00:16]} Ke8 {[%emt 0:00:57]} 26. Qg6+ {[%emt 0:00:42]} Kf8 {[%emt 0:00:29]} 27. Re1 {[%emt 0:03:36]} Qd3 {[%emt 0:05:07]} 28. Qf6+ {[%emt 0:00:39]} 1-0

[Event "EYCC Girls-U18 2019"]
[Site "Bratislava"]
[Date "2019.08.05"]
[Round "4.8"]
[White "Hryshchenko, Kamila"]
[Black "Muetsch, Annmarie"]
[Result "0-1"]
[ECO "C95"]
[WhiteElo "2060"]
[BlackElo "2266"]
[Annotator "NA"]
[PlyCount "176"]
[EventDate "2019.08.02"]
[EventType "swiss"]
[EventCountry "SVK"]
[SourceTitle "playchess.com"]
[Source "ChessBase"]
[SourceQuality "1"]
[TimeControl "40/5400+30:1800+30"]

1. e4 {[%emt 0:00:00]} e5 {[%emt 0:00:00]} 2. Nf3 {[%emt 0:00:00]} Nc6 {[%emt 0:00:00]} 3. Bb5 {[%emt 0:00:05]} a6 {[%emt 0:00:00]} 4. Ba4 {[%emt 0:00:11]} Nf6 {[%emt 0:00:06]} 5. O-O {[%emt 0:00:34]} Be7 {[%emt 0:00:20]} 6. Re1 {[%emt 0:00:14]} b5 {[%emt 0:00:19]} 7. Bb3 {[%emt 0:00:10]} d6 {[%emt 0:00:17]} 8. c3 {[%emt 0:00:52]} O-O {[%emt 0:00:18]} 9. h3 {[%emt 0:00:29]} Nb8 {[%emt 0:00:23]} 10. d4 {[%emt 0:01:17]} Nbd7 {[%emt 0:00:05]} 11. Nbd2 {[%emt 0:00:37]} Bb7 {[%emt 0:00:51]} 12. Bc2 {[%emt 0:00:53]} Re8 {[%emt 0:01:09]} 13. Nf1 {[%emt 0:01:01]} Bf8 {[%emt 0:00:31]} 14. Ng3 {[%emt 0:00:27]} g6 {[%emt 0:01:20]} 15. a4 {[%emt 0:05:49]} Bg7 {[%emt 0:01:27]} 16. d5 {[%emt 0:03:42]} Nb6 {[%emt 0:10:39]} 17. a5 {[%emt 0:09:15]} Nc8 {[%emt 0:00:16]} 18. b3 {[%emt 0:01:07]} c6 {[%emt 0:03:05]} 19. c4 {[%emt 0:08:33]} cxd5 {[%emt 0:02:18]} 20. cxd5 {[%emt 0:00:34]} Ne7 {[%emt 0:03:43]} 21. Ba3 {[%emt 0:06:03]} Rf8 {[%emt 0:04:45]} 22. Qe2 {[%emt 0:15:13]} h6 {[%emt 0:03:55]} 23. Rad1 {[%emt 0:22:31]} Ne8 {[%emt 0:02:21]} 24. Bb4 {[%emt 0:00:40]} Bc8 {[%emt 0:09:58]} 25. Kh1 {[%emt 0:09:55]} Ra7 {[%emt 0:03:19]} 26. Bb1 {[%emt 0:01:17]} f5 {[%emt 0:08:27]} 27. exf5 {[%emt 0:00:37]} Nxf5 {[%emt 0:00:43]} 28. Bxf5 {[%emt 0:03:54]} gxf5 {[%emt 0:03:09]} 29. Qe3 {[%emt 0:01:06]} Raf7 {[%emt 0:01:13]} 30. Qb6 {[%emt 0:00:19]} Qxb6 {[%emt 0:09:35]} 31. axb6 {[%emt 0:00:05]} Rb7 {[%emt 0:00:05]} 32. Rc1 {[%emt 0:03:07]} Bd7 {[%emt 0:00:24]} 33. Nh4 {[%emt 0:01:37]} Rxb6 {[%emt 0:02:34]} 34. Ng6 {[%emt 0:01:59]} Rf7 {[%emt 0:00:10]} 35. Nh5 {[%emt 0:00:39]} Kh7 {[%emt 0:00:39]} 36. Nxg7 {[%emt 0:00:36]} Kxg7 {[%emt 0:00:12]} 37. Nh4 {[%emt 0:00:04]} Rb8 {[%emt 0:04:05]} 38. Ra1 {[%emt 0:00:35]} Bc8 {[%emt 0:01:13]} 39. Rec1 {[%emt 0:00:12]} Bb7 {[%emt 0:00:19]} 40. Rd1 {[%emt 0:00:00]} Rc8 {[%emt 0:00:00]} 41. Ra2 {[%emt 0:07:25]} f4 {[%emt 0:09:52]} 42. Kg1 {[%emt 0:04:53]} Kf6 {[%emt 0:03:57]} 43. g4 {[%emt 0:00:33]} fxg3 {[%emt 0:01:00]} 44. fxg3 {[%emt 0:00:05]} Ke7 {[%emt 0:03:00]} 45. g4 {[%emt 0:06:41]} Ng7 {[%emt 0:01:06]} 46. Rad2 {[%emt 0:06:27]} Kd7 {[%emt 0:01:22]} 47. Rd3 {[%emt 0:00:28]} h5 {[%emt 0:08:14]} 48. Ng2 {[%emt 0:02:01]} hxg4 {[%emt 0:02:11]} 49. hxg4 {[%emt 0:00:05]} Ne8 {[%emt 0:02:19]} 50. Rh3 {[%emt 0:00:31]} Rg7 {[%emt 0:04:01]} 51. Ne3 {[%emt 0:00:53]} a5 {[%emt 0:02:10]} 52. Bxa5 {[%emt 0:00:44]} Nf6 {[%emt 0:00:33]} 53. Kf1 {[%emt 0:02:35]} Rcg8 {[%emt 0:03:20]} 54. Ke2 {[%emt 0:06:34]} Nxg4 {[%emt 0:02:08]} 55. Nxg4 {[%emt 0:00:05]} Rxg4 {[%emt 0:00:05]} 56. Rh7+ {[%emt 0:00:05]} R8g7 {[%emt 0:00:32]} 57. Rxg7+ {[%emt 0:00:04]} Rxg7 {[%emt 0:00:05]} 58. Kf3 {[%emt 0:00:19]} Rf7+ {[%emt 0:02:20]} 59. Ke3 {[%emt 0:00:06]} Rh7 {[%emt 0:00:12]} 60. b4 {[%emt 0:00:14]} Rh4 {[%emt 0:02:33]} 61. Kf3 {[%emt 0:00:37]} Rf4+ {[%emt 0:00:46]} 62. Ke3 {[%emt 0:00:18]} Ke7 {[%emt 0:00:30]} 63. Rd2 {[%emt 0:00:11]} Rh4 {[%emt 0:00:48]} 64. Rd1 {[%emt 0:01:23]} Rh3+ {[%emt 0:00:58]} 65. Kf2 {[%emt 0:00:50]} Kf6 {[%emt 0:04:13]} 66. Bc7 {[%emt 0:00:15]} Ke7 {[%emt 0:00:27]} 67. Ba5 {[%emt 0:00:07]} Rc3 {[%emt 0:00:24]} 68. Ke2 {[%emt 0:00:40]} Rc4 {[%emt 0:00:23]} 69. Ke3 {[%emt 0:00:17]} Ba8 {[%emt 0:00:48]} 70. Rd2 {[%emt 0:00:17]} Rh4 {[%emt 0:01:01]} 71. Rd1 {[%emt 0:00:12]} Bb7 {[%emt 0:01:02]} 72. Rd2 {[%emt 0:00:07]} Rf4 {[%emt 0:00:40]} 73. Rd1 {[%emt 0:00:41]} Bc8 {[%emt 0:02:05]} 74. Rc1 {[%emt 0:02:04]} Bd7 {[%emt 0:00:10]} 75. Rc2 {[%emt 0:00:37]} Rh4 {[%emt 0:01:01]} 76. Rc1 Rd4 {[%emt 0:01:15]} 77. Rc2 {[%emt 0:02:12]} Rxd5 {[%emt 0:00:39]} 78. Rd2 {[%emt 0:00:12]} Rxd2 {[%emt 0:00:42]} 79. Kxd2 {[%emt 0:00:02]} d5 {[%emt 0:00:14]} 80. Bc7 {[%emt 0:00:32]} Ke6 {[%emt 0:00:06]} 81. Bb6 {[%emt 0:00:26]} d4 {[%emt 0:00:12]} 82. Bc5 {[%emt 0:00:17]} Kd5 {[%emt 0:00:07]} 83. Bf8 {[%emt 0:00:05]} e4 {[%emt 0:00:36]} 84. Bh6 {[%emt 0:00:13]} e3+ {[%emt 0:00:11]} 85. Ke2 {[%emt 0:00:04]} Ke4 {[%emt 0:00:05]} 86. Bg7 {[%emt 0:00:06]} Bg4+ {[%emt 0:00:14]} 87. Ke1 {[%emt 0:00:03]} d3 {[%emt 0:00:05]} 88. Bc3 {[%emt 0:00:04]} d2+ {[%emt 0:00:04]} 0-1

[Event "EYCC Girls-U18 2019"]
[Site "Bratislava"]
[Date "2019.08.05"]
[Round "4.9"]
[White "Sankova, Stella"]
[Black "Sargsyan, Anna M."]
[Result "0-1"]
[ECO "B12"]
[WhiteElo "1997"]
[BlackElo "2229"]
[Annotator "NA"]
[PlyCount "64"]
[EventDate "2019.08.02"]
[EventType "swiss"]
[EventCountry "SVK"]
[SourceTitle "playchess.com"]
[Source "ChessBase"]
[SourceQuality "1"]
[TimeControl "40/5400+30:1800+30"]

1. e4 {[%emt 0:00:00]} c6 {[%emt 0:00:00]} 2. d4 {[%emt 0:00:14]} d5 {[%emt 0:00:00]} 3. e5 {[%emt 0:00:39]} Bf5 {[%emt 0:00:11]} 4. h4 {[%emt 0:00:59]} h5 {[%emt 0:00:19]} 5. c4 {[%emt 0:00:59]} e6 {[%emt 0:00:06]} 6. Nc3 {[%emt 0:01:14]} Nd7 {[%emt 0:00:50]} 7. cxd5 {[%emt 0:02:03]} cxd5 {[%emt 0:02:08]} 8. Bd3 {[%emt 0:02:08]} Bxd3 {[%emt 0:01:46]} 9. Qxd3 {[%emt 0:00:03]} Ne7 {[%emt 0:00:07]} 10. Bg5 {[%emt 0:03:00]} Qb6 {[%emt 0:00:26]} 11. Nf3 {[%emt 0:02:29]} Nc6 {[%emt 0:03:12]} 12. O-O {[%emt 0:03:49]} Be7 {[%emt 0:04:42]} 13. Bxe7 {[%emt 0:15:02]} Nxe7 {[%emt 0:00:21]} 14. b4 {[%emt 0:01:35]} O-O {[%emt 0:03:36]} 15. Rfc1 {[%emt 0:06:37]} Rac8 {[%emt 0:03:41]} 16. a3 {[%emt 0:01:31]} Rc4 {[%emt 0:04:10]} 17. Na4 {[%emt 0:07:58]} Qc6 {[%emt 0:00:26]} 18. Nc5 {[%emt 0:00:18]} b6 {[%emt 0:01:00]} 19. Nb3 {[%emt 0:01:33]} Nf5 {[%emt 0:13:32]} 20. Nfd2 {[%emt 0:13:43]} b5 {[%emt 0:04:00]} 21. Nxc4 {[%emt 0:04:44]} dxc4 {[%emt 0:00:06]} 22. Na5 {[%emt 0:05:57]} Qd5 {[%emt 0:01:06]} 23. Nxc4 {[%emt 0:01:17]} bxc4 {[%emt 0:00:07]} 24. Qxc4 {[%emt 0:00:05]} Qe4 {[%emt 0:03:55]} 25. d5 {[%emt 0:04:49]} Nd4 {[%emt 0:02:06]} 26. dxe6 {[%emt 0:04:29]} Nxe5 {[%emt 0:00:07]} 27. exf7+ {[%emt 0:00:58]} Rxf7 {[%emt 0:00:09]} 28. Qc8+ {[%emt 0:01:24]} Rf8 {[%emt 0:00:27]} 29. Qh3 {[%emt 0:01:01]} Ne2+ {[%emt 0:04:18]} 30. Kf1 {[%emt 0:01:28]} Nxc1 {[%emt 0:00:32]} 31. Qe6+ {[%emt 0:00:31]} Kh8 {[%emt 0:00:19]} 32. Rxc1 {[%emt 0:00:11]} Rxf2+ {[%emt 0:00:07]} 0-1